[Event "Live Chess"]
[Site "Chess.com"]
[Date "2023.05.21"]
[Round "-"]
[White "BillythekidFellowes"]
[Black "JoeRoot66"]
[Result "1-0"]
[WhiteElo "2038"]
[BlackElo "1931"]
[TimeControl "300"]
[EndTime "0:20:43 PDT"]
[Termination "BillythekidFellowes won by resignation"]

1. e4 {[%clk 0:04:37]} 1... c6 {[%clk 0:04:59.1]} 2. d4 {[%clk 0:04:35.6]} 2...
d5 {[%clk 0:04:59]} 3. exd5 {[%clk 0:04:35.5]} 3... cxd5 {[%clk 0:04:58.9]} 4.
c4 {[%clk 0:04:31.8]} 4... Nf6 {[%clk 0:04:58.1]} 5. Nc3 {[%clk 0:04:28.8]} 5...
g6 {[%clk 0:04:57.4]} 6. Nf3 {[%clk 0:04:27.7]} 6... Bg7 {[%clk 0:04:56.6]} 7.
Be3 {[%clk 0:04:26.5]} 7... O-O {[%clk 0:04:56.1]} 8. Be2 {[%clk 0:04:25.3]}
8... Nc6 {[%clk 0:04:55.2]} 9. O-O {[%clk 0:04:24.5]} 9... Bg4 {[%clk
0:04:49.2]} 10. Ne5 {[%clk 0:04:21.5]} 10... Bxe2 {[%clk 0:04:44.9]} 11. Qxe2
{[%clk 0:04:20]} 11... Nxe5 {[%clk 0:04:35.8]} 12. dxe5 {[%clk 0:04:19.9]} 12...
Ne4 {[%clk 0:04:09.4]} 13. Nxe4 {[%clk 0:04:16.8]} 13... dxe4 {[%clk 0:04:07.7]}
14. Rfd1 {[%clk 0:04:16.2]} 14... Qc7 {[%clk 0:04:05.9]} 15. e6 {[%clk
0:03:46.5]} 15... Rad8 {[%clk 0:03:52.4]} 16. exf7+ {[%clk 0:03:43.7]} 16...
Kxf7 {[%clk 0:03:41.8]} 17. Rac1 {[%clk 0:03:31.9]} 17... Rxd1+ {[%clk 0:03:35]}
18. Rxd1 {[%clk 0:03:29.3]} 18... Rd8 {[%clk 0:03:34.9]} 19. b3 {[%clk 0:03:27]}
19... Rxd1+ {[%clk 0:03:30]} 20. Qxd1 {[%clk 0:03:26.9]} 20... Qd6 {[%clk
0:03:29.9]} 21. Qg4 {[%clk 0:03:22.4]} 21... h5 {[%clk 0:03:18.6]} 22. Qf4+
{[%clk 0:03:18.5]} 22... Qxf4 {[%clk 0:03:11.2]} 23. Bxf4 {[%clk 0:03:18.4]}
23... e5 {[%clk 0:03:05.6]} 24. Be3 {[%clk 0:03:17.5]} 24... a6 {[%clk
0:03:04.2]} 25. Kf1 {[%clk 0:03:17]} 25... Ke6 {[%clk 0:03:03.6]} 26. Ke2 {[%clk
0:03:16.3]} 26... Kd6 {[%clk 0:03:00.8]} 27. h4 {[%clk 0:03:15.2]} 27... Bf6
{[%clk 0:02:58.4]} 28. g3 {[%clk 0:03:14.4]} 28... Be7 {[%clk 0:02:56]} 29. b4
{[%clk 0:03:04.3]} 29... Kc6 {[%clk 0:02:53.2]} 30. a3 {[%clk 0:03:01.3]} 30...
b5 {[%clk 0:02:50.3]} 31. c5 {[%clk 0:02:55]} 31... Kd5 {[%clk 0:02:47.6]} 32.
Kd2 {[%clk 0:02:54.2]} 32... Bd8 {[%clk 0:02:37.4]} 33. Kc3 {[%clk 0:02:51.4]}
33... a5 {[%clk 0:02:33.1]} 34. Bg5 {[%clk 0:02:43.1]} 34... Bc7 {[%clk
0:02:08]} 35. Be7 {[%clk 0:02:38.7]} 35... Ke6 {[%clk 0:01:56.2]} 36. Bg5 {[%clk
0:02:35.8]} 36... Kd5 {[%clk 0:01:53.8]} 37. Be3 {[%clk 0:02:30.6]} 37... Kc6
{[%clk 0:01:39.1]} 38. Kb3 {[%clk 0:02:27.2]} 38... a4+ {[%clk 0:01:34.8]} 39.
Kc3 {[%clk 0:02:25.7]} 39... Kd5 {[%clk 0:01:33.4]} 40. Bd2 {[%clk 0:02:04.7]}
40... Bd8 {[%clk 0:01:30.4]} 41. Bg5 {[%clk 0:02:03.2]} 41... Bc7 {[%clk
0:01:27.3]} 42. Kd2 {[%clk 0:02:02.2]} 42... Kc4 {[%clk 0:01:23.6]} 43. Kc2
{[%clk 0:01:58.1]} 43... Bb8 {[%clk 0:01:13.4]} 44. Bd8 {[%clk 0:01:45.8]} 44...
Kd5 {[%clk 0:01:07]} 45. Kd2 {[%clk 0:01:44.9]} 45... Kc6 {[%clk 0:01:04]} 46.
Ke3 {[%clk 0:01:44.1]} 46... Kd5 {[%clk 0:01:02.2]} 47. Ba5 {[%clk 0:01:35.5]}
47... Ba7 {[%clk 0:00:48.7]} 48. Bc7 {[%clk 0:01:34.3]} 48... Bxc5+ {[%clk
0:00:32.6]} 49. bxc5 {[%clk 0:01:34.2]} 49... Kxc5 {[%clk 0:00:32.5]} 50. Kxe4
{[%clk 0:01:30.9]} 50... b4 {[%clk 0:00:31.8]} 51. axb4+ {[%clk 0:01:29.9]}
51... Kxb4 {[%clk 0:00:31.7]} 52. Kxe5 {[%clk 0:01:28.7]} 52... Kb3 {[%clk
0:00:31.6]} 53. Kf6 {[%clk 0:01:26.5]} 53... a3 {[%clk 0:00:31.5]} 54. Kxg6
{[%clk 0:01:25.8]} 54... a2 {[%clk 0:00:31.4]} 55. Be5 {[%clk 0:01:25.4]} 1-0

[Event "Live Chess"]
[Site "Chess.com"]
[Date "2023.05.21"]
[Round "-"]
[White "diana21strabt"]
[Black "mirandaasilva"]
[Result "0-1"]
[WhiteElo "1708"]
[BlackElo "1646"]
[TimeControl "300"]
[EndTime "0:21:10 PDT"]
[Termination "mirandaasilva won by checkmate"]

1. e4 {[%clk 0:04:58.2]} 1... c5 {[%clk 0:04:58.1]} 2. Nf3 {[%clk 0:04:55.7]}
2... e6 {[%clk 0:04:54.8]} 3. d4 {[%clk 0:04:54.4]} 3... cxd4 {[%clk 0:04:54.5]}
4. Nxd4 {[%clk 0:04:53]} 4... Nf6 {[%clk 0:04:54.1]} 5. Nc3 {[%clk 0:04:51.9]}
5... a6 {[%clk 0:04:53.5]} 6. Bg5 {[%clk 0:04:50.5]} 6... d6 {[%clk 0:04:48.7]}
7. f4 {[%clk 0:04:49.3]} 7... Nbd7 {[%clk 0:04:46.5]} 8. Qf3 {[%clk 0:04:48.1]}
8... Be7 {[%clk 0:04:44]} 9. g4 {[%clk 0:04:46]} 9... Qb6 {[%clk 0:04:40.3]} 10.
O-O-O {[%clk 0:04:44.4]} 10... h6 {[%clk 0:04:35.5]} 11. Bxf6 {[%clk 0:04:42.9]}
11... gxf6 {[%clk 0:04:35.4]} 12. f5 {[%clk 0:04:39.9]} 12... e5 {[%clk
0:04:31.1]} 13. Nb3 {[%clk 0:04:33.9]} 13... Qc7 {[%clk 0:04:30.2]} 14. Nd5
{[%clk 0:04:32]} 14... Qc6 {[%clk 0:04:26.1]} 15. Nxe7 {[%clk 0:04:27.7]} 15...
Kxe7 {[%clk 0:04:24.9]} 16. Qd3 {[%clk 0:04:11.8]} 16... b5 {[%clk 0:04:21.2]}
17. Qd5 {[%clk 0:04:01.8]} 17... Bb7 {[%clk 0:04:19.9]} 18. Na5 {[%clk
0:03:55.2]} 18... Qxd5 {[%clk 0:04:15.9]} 19. exd5 {[%clk 0:03:53.9]} 19... Rab8
{[%clk 0:04:02.2]} 20. a4 {[%clk 0:03:45.3]} 20... bxa4 {[%clk 0:03:51.9]} 21.
Nxb7 {[%clk 0:03:42.6]} 21... Rxb7 {[%clk 0:03:51.8]} 22. Bxa6 {[%clk
0:03:41.5]} 22... Rb6 {[%clk 0:03:49.3]} 23. Bc4 {[%clk 0:03:35.2]} 23... Ra8
{[%clk 0:03:30.4]} 24. Rd3 {[%clk 0:03:20.5]} 24... Nc5 {[%clk 0:03:28]} 25. Ra3
{[%clk 0:03:14.2]} 25... Rb4 {[%clk 0:03:25.8]} 26. b3 {[%clk 0:02:57.3]} 26...
Rab8 {[%clk 0:03:22.3]} 27. Kb2 {[%clk 0:02:45.9]} 27... Rxc4 {[%clk 0:03:10.1]}
28. Kc1 {[%clk 0:02:39.1]} 28... axb3 {[%clk 0:03:03.8]} 29. Ra7+ {[%clk
0:02:37.7]} 29... Kf8 {[%clk 0:02:51.5]} 30. h4 {[%clk 0:02:32.8]} 30... Rxc2+
{[%clk 0:02:49.6]} 31. Kb1 {[%clk 0:02:31.3]} 31... Nd3 {[%clk 0:02:24.6]} 32.
g5 {[%clk 0:02:17.7]} 32... fxg5 {[%clk 0:02:12.9]} 33. hxg5 {[%clk 0:02:15.6]}
33... b2 {[%clk 0:01:34.5]} 34. Rxh6 {[%clk 0:01:20.8]} 34... Rc1+ {[%clk
0:01:29.1]} 35. Ka2 {[%clk 0:01:19.1]} 35... b1=Q+ {[%clk 0:01:26.2]} 36. Ka3
{[%clk 0:01:17.9]} 36... Qb3# {[%clk 0:01:24.3]} 0-1

[Event "Live Chess"]
[Site "Chess.com"]
[Date "2023.05.21"]
[Round "-"]
[White "Rusty_Bridges"]
[Black "Crowded_House"]
[Result "1-0"]
[WhiteElo "1552"]
[BlackElo "1662"]
[TimeControl "300"]
[EndTime "0:21:12 PDT"]
[Termination "Rusty_Bridges won by checkmate"]

1. e4 {[%clk 0:04:54.6]} 1... e6 {[%clk 0:04:58.4]} 2. d4 {[%clk 0:04:51.3]}
2... d5 {[%clk 0:04:57.2]} 3. exd5 {[%clk 0:04:47.2]} 3... exd5 {[%clk 0:04:55]}
4. Nf3 {[%clk 0:04:44.6]} 4... Bd6 {[%clk 0:04:53.6]} 5. Bd3 {[%clk 0:04:35.8]}
5... Ne7 {[%clk 0:04:51.2]} 6. Bg5 {[%clk 0:04:24.9]} 6... f6 {[%clk 0:04:50]}
7. Bh4 {[%clk 0:04:23.1]} 7... O-O {[%clk 0:04:47.8]} 8. O-O {[%clk 0:04:19.6]}
8... Bf5 {[%clk 0:04:45.7]} 9. Nc3 {[%clk 0:04:11.7]} 9... c6 {[%clk 0:04:43.8]}
10. Re1 {[%clk 0:03:55.5]} 10... Bxd3 {[%clk 0:04:41.4]} 11. Qxd3 {[%clk
0:03:53.3]} 11... Nd7 {[%clk 0:04:34.6]} 12. Re2 {[%clk 0:03:46.5]} 12... Ng6
{[%clk 0:04:31.2]} 13. Bg3 {[%clk 0:03:43.6]} 13... Bxg3 {[%clk 0:04:28.3]} 14.
hxg3 {[%clk 0:03:39.3]} 14... Kf7 {[%clk 0:04:20]} 15. Rae1 {[%clk 0:03:31.8]}
15... Qc7 {[%clk 0:04:18.2]} 16. Nh4 {[%clk 0:03:29.1]} 16... Rfe8 {[%clk
0:04:12.3]} 17. Nxg6 {[%clk 0:03:27.1]} 17... Rxe2 {[%clk 0:04:07.1]} 18. Rxe2
{[%clk 0:03:19.3]} 18... hxg6 {[%clk 0:04:01.8]} 19. Qe3 {[%clk 0:03:01.9]}
19... Nf8 {[%clk 0:03:57.3]} 20. Na4 {[%clk 0:02:50.6]} 20... b6 {[%clk
0:03:50.2]} 21. Nc3 {[%clk 0:02:47.4]} 21... Qd7 {[%clk 0:03:45.8]} 22. Re1
{[%clk 0:02:32]} 22... Re8 {[%clk 0:03:43.9]} 23. Qd2 {[%clk 0:02:29.8]} 23...
Rxe1+ {[%clk 0:03:42.8]} 24. Qxe1 {[%clk 0:02:28.7]} 24... Qe6 {[%clk
0:03:42.4]} 25. Kf1 {[%clk 0:02:23.6]} 25... Qxe1+ {[%clk 0:03:38.7]} 26. Kxe1
{[%clk 0:02:22.7]} 26... Ne6 {[%clk 0:03:38.4]} 27. Ne2 {[%clk 0:02:19.7]} 27...
g5 {[%clk 0:03:30.9]} 28. c3 {[%clk 0:02:17.7]} 28... f5 {[%clk 0:03:27.2]} 29.
Kd2 {[%clk 0:02:15.1]} 29... g6 {[%clk 0:03:25.8]} 30. Ke3 {[%clk 0:02:13.4]}
30... Nc7 {[%clk 0:03:22.5]} 31. Nc1 {[%clk 0:02:11.3]} 31... Ke6 {[%clk
0:03:17]} 32. Nd3 {[%clk 0:02:09.3]} 32... Na6 {[%clk 0:02:47.4]} 33. Ne5 {[%clk
0:02:05.1]} 33... Kf6 {[%clk 0:02:43.5]} 34. Nxc6 {[%clk 0:02:03.5]} 34... Ke6
{[%clk 0:02:33]} 35. Nxa7 {[%clk 0:02:01.4]} 35... Nc7 {[%clk 0:02:30.2]} 36.
Nc6 {[%clk 0:01:59.6]} 36... Ne8 {[%clk 0:02:23.5]} 37. Ne5 {[%clk 0:01:56.1]}
37... Kf6 {[%clk 0:02:19.5]} 38. Nd7+ {[%clk 0:01:52.4]} 38... Ke6 {[%clk
0:02:17.6]} 39. Nxb6 {[%clk 0:01:51.1]} 39... Nd6 {[%clk 0:02:17.2]} 40. b4
{[%clk 0:01:39.3]} 40... Nb5 {[%clk 0:02:10.7]} 41. Kd3 {[%clk 0:01:36.2]} 41...
f4 {[%clk 0:02:08]} 42. gxf4 {[%clk 0:01:34]} 42... gxf4 {[%clk 0:02:06.7]} 43.
a4 {[%clk 0:01:32.4]} 43... Na7 {[%clk 0:02:00.6]} 44. a5 {[%clk 0:01:23.8]}
44... Kd6 {[%clk 0:01:56]} 45. Na4 {[%clk 0:01:20]} 45... g5 {[%clk 0:01:48.2]}
46. Nc5 {[%clk 0:01:13.7]} 46... Nb5 {[%clk 0:01:42.2]} 47. g3 {[%clk 0:01:07]}
47... fxg3 {[%clk 0:01:40.8]} 48. fxg3 {[%clk 0:01:06]} 48... Ke7 {[%clk
0:01:34.7]} 49. Kc2 {[%clk 0:00:58.7]} 49... Kf6 {[%clk 0:01:33.7]} 50. Nd3
{[%clk 0:00:55]} 50... Kf5 {[%clk 0:01:29.1]} 51. Ne5 {[%clk 0:00:53.2]} 51...
Ke4 {[%clk 0:01:22.8]} 52. a6 {[%clk 0:00:44]} 52... Ke3 {[%clk 0:01:19.1]} 53.
Nc6 {[%clk 0:00:39]} 53... Kf2 {[%clk 0:01:15.5]} 54. g4 {[%clk 0:00:36.9]}
54... Kf3 {[%clk 0:01:13.3]} 55. a7 {[%clk 0:00:36.1]} 55... Nxa7 {[%clk
0:01:11.7]} 56. Nxa7 {[%clk 0:00:35.3]} 56... Kxg4 {[%clk 0:01:11.5]} 57. Nc6
{[%clk 0:00:33.8]} 57... Kf3 {[%clk 0:01:10.4]} 58. Ne5+ {[%clk 0:00:32.8]}
58... Kf4 {[%clk 0:01:08.1]} 59. b5 {[%clk 0:00:32.7]} 59... Kf5 {[%clk
0:01:05.8]} 60. b6 {[%clk 0:00:31.2]} 60... g4 {[%clk 0:01:05.4]} 61. Nxg4
{[%clk 0:00:29.2]} 61... Kxg4 {[%clk 0:01:04.7]} 62. b7 {[%clk 0:00:28.7]} 62...
Kf4 {[%clk 0:01:04.2]} 63. b8=Q+ {[%clk 0:00:27.3]} 63... Ke4 {[%clk 0:01:03.8]}
64. Qd6 {[%clk 0:00:26.1]} 64... Ke3 {[%clk 0:01:02.9]} 65. Qxd5 {[%clk
0:00:25.2]} 65... Kf4 {[%clk 0:01:02]} 66. c4 {[%clk 0:00:24.4]} 66... Ke3
{[%clk 0:01:01.6]} 67. c5 {[%clk 0:00:22.8]} 67... Kf4 {[%clk 0:01:01]} 68. c6
{[%clk 0:00:22]} 68... Ke3 {[%clk 0:01:00.6]} 69. c7 {[%clk 0:00:21.2]} 69...
Ke2 {[%clk 0:01:00.3]} 70. c8=Q {[%clk 0:00:19.1]} 70... Ke3 {[%clk 0:01:00.2]}
71. Qe8+ {[%clk 0:00:16.1]} 71... Kf4 {[%clk 0:00:59.2]} 72. Qdf7+ {[%clk
0:00:14.8]} 72... Kg5 {[%clk 0:00:57.9]} 73. Qeg8+ {[%clk 0:00:14.7]} 73... Kh6
{[%clk 0:00:57.1]} 74. Qfh7# {[%clk 0:00:14.3]} 1-0

[Event "Live Chess"]
[Site "Chess.com"]
[Date "2023.05.21"]
[Round "-"]
[White "Leonid_Starozhilov"]
[Black "Denz14"]
[Result "1-0"]
[WhiteElo "2646"]
[BlackElo "1031"]
[TimeControl "300"]
[EndTime "0:21:12 PDT"]
[Termination "Leonid_Starozhilov won by resignation"]

1. e4 {[%clk 0:04:58.9]} 1... d5 {[%clk 0:04:57.5]} 2. exd5 {[%clk 0:04:54.6]}
2... Qxd5 {[%clk 0:04:55.1]} 3. Nf3 {[%clk 0:04:52.9]} 3... Qd8 {[%clk 0:04:55]}
4. d4 {[%clk 0:04:51.8]} 4... Bg4 {[%clk 0:04:53.3]} 5. Bc4 {[%clk 0:04:51.2]}
5... e6 {[%clk 0:04:51.7]} 6. h3 {[%clk 0:04:49.2]} 6... Bxf3 {[%clk 0:04:50.5]}
7. Qxf3 {[%clk 0:04:48.5]} 7... c6 {[%clk 0:04:49.6]} 8. c3 {[%clk 0:04:48]}
8... Nf6 {[%clk 0:04:38.6]} 9. O-O {[%clk 0:04:46.3]} 9... Bd6 {[%clk
0:04:35.3]} 10. Bg5 {[%clk 0:04:45.2]} 10... Nbd7 {[%clk 0:04:32.5]} 11. Nd2
{[%clk 0:04:44.2]} 11... Be7 {[%clk 0:04:31.5]} 12. Rfe1 {[%clk 0:04:42.8]}
12... O-O {[%clk 0:04:29.1]} 13. Re2 {[%clk 0:04:40]} 13... Nd5 {[%clk
0:04:21.2]} 14. Bxe7 {[%clk 0:04:38.8]} 14... Qxe7 {[%clk 0:04:17]} 15. Bxd5
{[%clk 0:04:37.7]} 15... cxd5 {[%clk 0:04:15.4]} 16. Qxd5 {[%clk 0:04:36.7]}
16... exd5 {[%clk 0:04:12.3]} 17. Rxe7 {[%clk 0:04:30.7]} 17... Nf6 {[%clk
0:04:09.1]} 18. Rxb7 {[%clk 0:04:29.1]} 18... Rab8 {[%clk 0:04:07.1]} 19. Rxb8
{[%clk 0:04:28]} 19... Rxb8 {[%clk 0:04:05.9]} 20. b4 {[%clk 0:04:24.6]} 20...
Rc8 {[%clk 0:04:03.4]} 21. Rc1 {[%clk 0:04:23.8]} 21... Ne4 {[%clk 0:04:00.5]}
22. Nxe4 {[%clk 0:04:22.7]} 22... dxe4 {[%clk 0:03:59.6]} 23. c4 {[%clk
0:04:21.5]} 23... f5 {[%clk 0:03:54.5]} 24. d5 {[%clk 0:04:20.4]} 24... Kf7
{[%clk 0:03:52.6]} 25. d6 {[%clk 0:04:18.4]} 25... Ke6 {[%clk 0:03:50.4]} 26. c5
{[%clk 0:04:17.7]} 26... Kd5 {[%clk 0:03:47.1]} 27. d7 {[%clk 0:04:15.4]} 27...
Rd8 {[%clk 0:03:46]} 28. c6 {[%clk 0:04:14.8]} 1-0

[Event "Live Chess"]
[Site "Chess.com"]
[Date "2023.05.21"]
[Round "-"]
[White "smoggyrabbit"]
[Black "Driftboard"]
[Result "1-0"]
[WhiteElo "1731"]
[BlackElo "808"]
[TimeControl "300"]
[EndTime "0:21:47 PDT"]
[Termination "smoggyrabbit won by checkmate"]

1. d4 {[%clk 0:04:58.1]} 1... d5 {[%clk 0:04:58.1]} 2. Nf3 {[%clk 0:04:57.1]}
2... Nf6 {[%clk 0:04:48.1]} 3. e3 {[%clk 0:04:55.5]} 3... Nc6 {[%clk 0:04:41.9]}
4. Bd3 {[%clk 0:04:48.8]} 4... Bg4 {[%clk 0:04:41.5]} 5. Nbd2 {[%clk 0:04:46.1]}
5... Bxf3 {[%clk 0:04:41]} 6. Nxf3 {[%clk 0:04:44.8]} 6... e6 {[%clk 0:04:40.5]}
7. O-O {[%clk 0:04:43]} 7... Bd6 {[%clk 0:04:40]} 8. b3 {[%clk 0:04:38.3]} 8...
O-O {[%clk 0:04:39.4]} 9. Bb2 {[%clk 0:04:36.8]} 9... Ng4 {[%clk 0:04:38.6]} 10.
h3 {[%clk 0:04:33.4]} 10... Nh2 {[%clk 0:04:34.4]} 11. Nxh2 {[%clk 0:04:31.3]}
11... Bxh2+ {[%clk 0:04:33.9]} 12. Kxh2 {[%clk 0:04:30.1]} 12... Nb4 {[%clk
0:04:31.1]} 13. c4 {[%clk 0:04:20.4]} 13... Nxd3 {[%clk 0:04:27.4]} 14. Qxd3
{[%clk 0:04:20.3]} 14... dxc4 {[%clk 0:04:26.6]} 15. bxc4 {[%clk 0:04:18.1]}
15... Qd7 {[%clk 0:04:25.6]} 16. f4 {[%clk 0:04:02.8]} 16... a6 {[%clk
0:04:24.2]} 17. Rf3 {[%clk 0:03:59.3]} 17... b5 {[%clk 0:04:14.6]} 18. cxb5
{[%clk 0:03:32.8]} 18... axb5 {[%clk 0:04:11.6]} 19. Rg3 {[%clk 0:03:25.9]}
19... c6 {[%clk 0:04:10]} 20. d5 {[%clk 0:03:21.6]} 20... exd5 {[%clk
0:04:05.1]} 21. Rxg7+ {[%clk 0:03:19.9]} 21... Kh8 {[%clk 0:03:51]} 22. Qxh7#
{[%clk 0:03:18.6]} 1-0

[Event "Live Chess"]
[Site "Chess.com"]
[Date "2023.05.21"]
[Round "-"]
[White "Hacker_2009"]
[Black "JohanKjeldahl"]
[Result "0-1"]
[WhiteElo "1941"]
[BlackElo "1884"]
[TimeControl "300"]
[EndTime "0:22:07 PDT"]
[Termination "JohanKjeldahl won by resignation"]

1. d4 {[%clk 0:04:58.1]} 1... Nf6 {[%clk 0:04:57.9]} 2. Nf3 {[%clk 0:04:55.9]}
2... e6 {[%clk 0:04:55.9]} 3. c4 {[%clk 0:04:54]} 3... c5 {[%clk 0:04:53.6]} 4.
e3 {[%clk 0:04:52]} 4... d5 {[%clk 0:04:51.2]} 5. Nc3 {[%clk 0:04:49.6]} 5...
Nc6 {[%clk 0:04:49.9]} 6. cxd5 {[%clk 0:04:47.7]} 6... exd5 {[%clk 0:04:48.3]}
7. Be2 {[%clk 0:04:45.7]} 7... Be6 {[%clk 0:04:47.2]} 8. O-O {[%clk 0:04:43.2]}
8... Be7 {[%clk 0:04:46.2]} 9. b3 {[%clk 0:04:42.1]} 9... O-O {[%clk 0:04:45.6]}
10. Bb2 {[%clk 0:04:38.1]} 10... b6 {[%clk 0:04:39.4]} 11. Rc1 {[%clk 0:04:37]}
11... Rc8 {[%clk 0:04:36.9]} 12. dxc5 {[%clk 0:04:30.3]} 12... bxc5 {[%clk
0:04:34]} 13. Na4 {[%clk 0:04:28.6]} 13... Ne4 {[%clk 0:04:23.6]} 14. Ne5 {[%clk
0:04:20]} 14... Nxe5 {[%clk 0:04:18.7]} 15. Bxe5 {[%clk 0:04:19.9]} 15... Bf6
{[%clk 0:04:14.3]} 16. Bxf6 {[%clk 0:04:18.4]} 16... Qxf6 {[%clk 0:04:12.2]} 17.
Bf3 {[%clk 0:04:16.7]} 17... c4 {[%clk 0:04:04.7]} 18. Bxe4 {[%clk 0:04:14.7]}
18... dxe4 {[%clk 0:04:03.2]} 19. Rxc4 {[%clk 0:04:12.1]} 19... Bxc4 {[%clk
0:04:01.7]} 20. bxc4 {[%clk 0:04:11.1]} 20... Rxc4 {[%clk 0:04:00.3]} 21. Qb3
{[%clk 0:04:04.3]} 21... Rfc8 {[%clk 0:03:57.3]} 22. h3 {[%clk 0:03:58.7]} 22...
h6 {[%clk 0:03:55.9]} 23. Rb1 {[%clk 0:03:55.7]} 23... Qe5 {[%clk 0:03:48.2]}
24. Nb2 {[%clk 0:03:49.2]} 24... Rc2 {[%clk 0:03:41.6]} 0-1

[Event "Live Chess"]
[Site "Chess.com"]
[Date "2023.05.21"]
[Round "-"]
[White "Shepherds_Pie"]
[Black "Bot_Boy"]
[Result "1-0"]
[WhiteElo "1920"]
[BlackElo "324"]
[TimeControl "300"]
[EndTime "0:22:22 PDT"]
[Termination "Shepherds_Pie won on time"]

1. c4 {[%clk 0:04:57]} 1... g6 {[%clk 0:04:56.6]} 2. Nc3 {[%clk 0:04:55.8]} 2...
c6 {[%clk 0:04:50.5]} 3. e4 {[%clk 0:04:53.5]} 3... e5 {[%clk 0:04:44.2]} 4. Nf3
{[%clk 0:04:51.5]} 4... d6 {[%clk 0:04:30.3]} 5. d4 {[%clk 0:04:49.8]} 5... h6
{[%clk 0:04:10.1]} 6. dxe5 {[%clk 0:04:46.9]} 6... dxe5 {[%clk 0:04:08.4]} 7.
Qxd8+ {[%clk 0:04:45.3]} 7... Kxd8 {[%clk 0:04:05.9]} 8. Nxe5 {[%clk 0:04:45.2]}
8... Be6 {[%clk 0:03:49.9]} 9. Bf4 {[%clk 0:04:40.6]} 9... Na6 {[%clk
0:03:28.6]} 10. O-O-O+ {[%clk 0:04:38.1]} 10... Kc8 {[%clk 0:03:07.3]} 11. Kb1
{[%clk 0:04:31.3]} 11... g5 {[%clk 0:02:40.6]} 12. Bg3 {[%clk 0:04:26.8]} 12...
h5 {[%clk 0:02:27.9]} 13. h4 {[%clk 0:04:25]} 13... g4 {[%clk 0:02:20.7]} 14. f4
{[%clk 0:04:20.3]} 14... f5 {[%clk 0:01:48.8]} 15. Ng6 {[%clk 0:04:17.4]} 15...
Bg7 {[%clk 0:00:45.3]} 16. Nxh8 {[%clk 0:04:14.7]} 16... Bxh8 {[%clk 0:00:44.1]}
17. e5 {[%clk 0:04:13.4]} 17... Nc7 {[%clk 0:00:40.2]} 18. Bf2 {[%clk
0:04:11.5]} 18... b6 {[%clk 0:00:38.1]} 19. Be2 {[%clk 0:04:08.4]} 19... Ne7
{[%clk 0:00:36.7]} 20. g3 {[%clk 0:04:06.9]} 20... Bg7 {[%clk 0:00:30.2]} 21.
Rd2 {[%clk 0:04:05.3]} 21... Kb7 {[%clk 0:00:24.9]} 22. Rhd1 {[%clk 0:04:04.2]}
22... Ka6 {[%clk 0:00:14.1]} 23. b3 {[%clk 0:04:01.9]} 23... b5 {[%clk
0:00:11.7]} 24. cxb5+ {[%clk 0:03:59.6]} 24... Nxb5 {[%clk 0:00:09.5]} 25. a4
{[%clk 0:03:56.5]} 25... Rb8 {[%clk 0:00:05.4]} 26. axb5+ {[%clk 0:03:54.6]}
26... Rxb5 {[%clk 0:00:03.8]} 27. Nxb5 {[%clk 0:03:52.8]} 27... cxb5 {[%clk
0:00:01.8]} 28. b4 {[%clk 0:03:51]} 1-0

[Event "Live Chess"]
[Site "Chess.com"]
[Date "2023.05.21"]
[Round "-"]
[White "Pandreq"]
[Black "Mikhail_Golubev"]
[Result "0-1"]
[WhiteElo "1255"]
[BlackElo "2472"]
[TimeControl "300"]
[EndTime "0:22:34 PDT"]
[Termination "Mikhail_Golubev won on time"]

1. d4 {[%clk 0:04:57.8]} 1... Na6 {[%clk 0:04:58.8]} 2. e4 {[%clk 0:04:54.1]}
2... c6 {[%clk 0:04:57.8]} 3. Nc3 {[%clk 0:04:50.5]} 3... Nc7 {[%clk 0:04:56.2]}
4. Nf3 {[%clk 0:04:47.1]} 4... d5 {[%clk 0:04:54.8]} 5. e5 {[%clk 0:04:44.5]}
5... Bf5 {[%clk 0:04:48.8]} 6. Bd3 {[%clk 0:04:39.4]} 6... Bxd3 {[%clk
0:04:46.3]} 7. Qxd3 {[%clk 0:04:39.3]} 7... e6 {[%clk 0:04:44.3]} 8. O-O {[%clk
0:04:36.3]} 8... Ne7 {[%clk 0:04:42.7]} 9. Na4 {[%clk 0:04:30]} 9... h5 {[%clk
0:04:28.4]} 10. Nc5 {[%clk 0:04:27.3]} 10... Qc8 {[%clk 0:04:21.3]} 11. c4
{[%clk 0:04:11.8]} 11... Nf5 {[%clk 0:04:07.6]} 12. cxd5 {[%clk 0:03:44.9]}
12... Nxd5 {[%clk 0:04:05.3]} 13. Ne4 {[%clk 0:03:20.8]} 13... Qd7 {[%clk
0:04:00]} 14. Bd2 {[%clk 0:02:57.4]} 14... Rd8 {[%clk 0:03:44.8]} 15. Rac1
{[%clk 0:02:51.5]} 15... Be7 {[%clk 0:03:40.5]} 16. Nc5 {[%clk 0:02:45]} 16...
Bxc5 {[%clk 0:03:38]} 17. Rxc5 {[%clk 0:02:44]} 17... Nde7 {[%clk 0:03:12.5]}
18. Bc3 {[%clk 0:02:21.7]} 18... b6 {[%clk 0:02:52]} 19. Rc4 {[%clk 0:02:15.2]}
19... Qd5 {[%clk 0:01:45.9]} 20. Rd1 {[%clk 0:01:37.8]} 20... Ng6 {[%clk
0:01:26.4]} 21. g3 {[%clk 0:01:24]} 21... h4 {[%clk 0:01:14.8]} 22. Be1 {[%clk
0:01:01.7]} 22... h3 {[%clk 0:01:03.8]} 23. Rdc1 {[%clk 0:00:33.4]} 23... Nxe5
{[%clk 0:00:53.8]} 24. Qb3 {[%clk 0:00:03]} 24... Nxf3+ {[%clk 0:00:49.4]} 0-1

[Event "Live Chess"]
[Site "Chess.com"]
[Date "2023.05.21"]
[Round "-"]
[White "Duke_of_Bebington"]
[Black "toxic_rabbit"]
[Result "0-1"]
[WhiteElo "1588"]
[BlackElo "1982"]
[TimeControl "300"]
[EndTime "0:22:41 PDT"]
[Termination "toxic_rabbit won by resignation"]

1. e4 {[%clk 0:04:57.5]} 1... e6 {[%clk 0:04:58.3]} 2. d4 {[%clk 0:04:55.7]}
2... d5 {[%clk 0:04:52.4]} 3. Nd2 {[%clk 0:04:53.9]} 3... c5 {[%clk 0:04:50.2]}
4. Ngf3 {[%clk 0:04:39.9]} 4... Nc6 {[%clk 0:04:44.9]} 5. exd5 {[%clk
0:04:37.3]} 5... exd5 {[%clk 0:04:43.9]} 6. dxc5 {[%clk 0:04:33.8]} 6... Bxc5
{[%clk 0:04:42.1]} 7. Bd3 {[%clk 0:04:28.7]} 7... Nf6 {[%clk 0:04:40.6]} 8. O-O
{[%clk 0:04:24.1]} 8... O-O {[%clk 0:04:39.6]} 9. h3 {[%clk 0:04:12.9]} 9... h6
{[%clk 0:04:37.4]} 10. Nb3 {[%clk 0:03:58.8]} 10... Bb6 {[%clk 0:04:35.4]} 11.
Bd2 {[%clk 0:03:47.2]} 11... Be6 {[%clk 0:04:33.8]} 12. Re1 {[%clk 0:03:43]}
12... Re8 {[%clk 0:04:31.6]} 13. Qc1 {[%clk 0:03:42]} 13... h5 {[%clk 0:04:19]}
14. Ne5 {[%clk 0:03:28.6]} 14... Nxe5 {[%clk 0:04:14.9]} 15. Rxe5 {[%clk
0:03:28.5]} 15... Bc7 {[%clk 0:04:12.6]} 16. Rg5 {[%clk 0:03:19.7]} 16... Qd6
{[%clk 0:04:04.6]} 17. g3 {[%clk 0:03:12.1]} 17... Bxh3 {[%clk 0:03:59.8]} 18.
Bf4 {[%clk 0:03:07]} 18... Qd7 {[%clk 0:03:48.6]} 19. Nd4 {[%clk 0:02:57.7]}
19... Ne4 {[%clk 0:03:30.7]} 20. Rxh5 {[%clk 0:02:42.6]} 20... Bg4 {[%clk
0:03:27.7]} 21. Rh2 {[%clk 0:02:29]} 21... Bb6 {[%clk 0:03:23.5]} 22. Ne2 {[%clk
0:02:16]} 22... Nxf2 {[%clk 0:03:11.6]} 23. Rxf2 {[%clk 0:02:10.8]} 23... Bxe2
{[%clk 0:03:09.7]} 24. Bxe2 {[%clk 0:02:04]} 24... Rxe2 {[%clk 0:03:09.6]} 0-1